bitfinex/quotes_SOLUSD_20250706
["timestamp","ask_amount","ask_price","bid_price","bid_amount"]
[1751844889728,56.30983986,151.94,151.93,0.06]
[1751844890128,55.60004587,151.94,151.93,0.06]
[1751844891944,62.87894414,151.94,151.93,0.06]
[1751844892151,55.60004587,151.94,151.93,0.06]
[1751844897453,49.01850053,151.94,151.93,0.06]
[1751844897633,23.01850053,151.94,151.93,0.06]
[1751844900869,29.60004587,151.94,151.93,0.06]
[1751844910736,55.60004587,151.94,151.93,0.06]
[1751844911755,29.60004587,151.94,151.93,0.06]
[1751844913267,18.64964886,151.92,151.91,0.06]
[1751844913570,54.9115522,151.92,151.91,0.06]
[1751844914063,28.9115522,151.92,151.91,0.06]
[1751844915166,42.73625377,151.92,151.91,0.06]
[1751844922968,26.0,151.89,151.88,0.06]
[1751844923160,49.01850053,151.89,151.88,0.06]
[1751844924175,18.64964886,151.88,151.86,0.06]
[1751844924353,49.01850053,151.87,151.86,0.06]
[1751844925067,49.01850053,151.87,151.82,0.1]
[1751844925068,18.64964886,151.83,151.82,0.1]
[1751844925380,23.01850053,151.83,151.81,2.39902932]
[1751844925568,49.01850053,151.82,151.81,2.39902932]
[1751844925756,18.64964886,151.81,151.76,4.36885167]
[1751844925957,23.01850053,151.81,151.77,4.36885167]
[1751844926164,23.01850053,151.81,151.72,5.16562932]
[1751844926365,23.01850053,151.79,151.75,4.36885167]
[1751844926555,18.64964886,151.79,151.76,4.36885167]
[1751844926754,4.36885167,151.81,151.77,4.36885167]
[1751844926969,18.64964886,151.8,151.77,4.36885167]
[1751844927267,18.64964886,151.79,151.76,4.36885167]
[1751844928458,4.36885167,151.8,151.76,4.36885167]
[1751844928772,4.36885167,151.79,151.75,4.36885167]
[1751844929153,4.36885167,151.79,151.74,6.58978931]
[1751844929355,4.36885167,151.79,151.75,4.36885167]
[1751844930061,23.01850053,151.8,151.75,4.36885167]
[1751844930958,26.0,151.82,151.76,4.36885167]
[1751844930959,32.58676906,151.82,151.76,4.36885167]
[1751844931272,23.01850053,151.81,151.73,1.5438]
[1751844931474,23.01850053,151.81,151.76,4.36885167]
[1751844932377,23.01850053,151.81,151.74,6.59022011]
[1751844932378,4.36885167,151.79,151.74,6.59022011]
[1751844932570,4.36885167,151.78,151.74,6.59022011]
[1751844932772,18.64964886,151.81,151.74,10.95907178]
[1751844932976,4.36885167,151.78,151.74,10.95907178]
[1751844933571,4.36885167,151.78,151.74,6.59022011]
[1751844933759,4.36885167,151.78,151.74,10.95907178]
[1751844934184,6.58776198,151.8,151.74,6.59022011]
[1751844934388,4.36885167,151.78,151.74,6.59022011]
[1751844934587,4.36885167,151.78,151.74,10.95907178]
[1751844935195,18.64964886,151.77,151.73,8.13429165]
[1751844935394,4.36885167,151.77,151.73,12.50314332]
[1751844936173,23.01850053,151.78,151.74,4.36885167]
[1751844936980,26.0,151.79,151.75,4.36885167]
[1751844937171,23.01850053,151.78,151.73,6.59049165]
[1751844937372,23.01850053,151.78,151.74,4.36885167]
[1751844937790,23.01850053,151.78,151.73,6.59049165]
[1751844937791,4.36885167,151.77,151.73,10.95934332]
[1751844938588,4.36885167,151.77,151.73,4.36885167]
[1751844939282,23.01850053,151.78,151.74,4.36885167]
[1751844939791,18.64964886,151.78,151.74,4.36885167]
[1751844939976,23.01850053,151.78,151.74,4.36885167]
[1751844940587,23.01850053,151.78,151.74,10.9587465]
[1751844941992,44.64964886,151.73,151.72,0.06]
[1751844942501,49.01850053,151.73,151.72,0.06]
[1751844942790,55.60915498,151.73,151.72,0.06]
[1751844942983,1.6093,151.8,151.72,0.06]
[1751844943180,23.01850053,151.74,151.72,0.06]
[1751844943375,23.01850053,151.73,151.72,0.06]
[1751844944672,29.60915498,151.73,151.72,0.06]
[1751844946495,55.60915498,151.73,151.72,0.06]
[1751844953095,51.24030331,151.73,151.72,0.06]
[1751844953443,55.60915498,151.73,151.72,0.06]
[1751844954684,31.16965498,151.73,151.72,0.06]
[1751844955283,57.16965498,151.73,151.72,0.06]
[1751844955681,18.64964886,151.73,151.72,0.06]
[1751844955993,6.58948563,151.76,151.72,0.06]
[1751844955994,18.64964886,151.75,151.72,0.06]
[1751844956198,23.01850053,151.75,151.72,0.06]
[1751844956588,18.64964886,151.75,151.72,4.42885167]
[1751844957194,18.64964886,151.75,151.72,0.06]
[1751844957404,18.64964886,151.75,151.72,4.42885167]
[1751844958091,0.03,151.73,151.72,0.06]
[1751844960939,0.03,151.73,151.72,4.42885167]
[1751844961211,0.03,151.73,151.72,11.01994051]
[1751844965495,0.03,151.73,151.72,4.42885167]
[1751844966286,0.03,151.73,151.72,0.06]
[1751844970117,0.03,151.73,151.72,4.42885167]
[1751844972395,0.03,151.73,151.72,0.06]
[1751844972396,49.04850053,151.73,151.72,0.06]
[1751844972708,56.31853668,151.73,151.72,0.06]
[1751844974614,58.54033946,151.73,151.72,0.06]
[1751844974834,49.04850053,151.73,151.72,0.06]
[1751844975424,55.63915498,151.73,151.72,0.06]
[1751844977926,51.27030331,151.73,151.72,0.06]
[1751844978102,55.63915498,151.73,151.72,0.06]
[1751844978504,49.04850053,151.73,151.72,0.06]
[1751844980923,55.63915498,151.73,151.72,0.06]
[1751844981623,49.04850053,151.73,151.72,0.06]
[1751844993037,55.63915498,151.73,151.72,0.06]
[1751844995439,0.03,151.73,151.72,0.06]
[1751844995637,0.03,151.73,151.72,4.42885167]
[1751844997420,0.03,151.73,151.72,11.01994051]
[1751845007257,0.03,151.73,151.72,0.06]
[1751845007453,0.03,151.73,151.72,4.42885167]
[1751845008654,0.03,151.73,151.72,11.01994051]
[1751845024370,1.6349,151.79,151.72,27.49766262]
[1751845024668,0.03,151.8,151.77,4.36885167]
[1751845026975,0.03,151.8,151.77,10.95768969]
[1751845027268,0.03,151.8,151.78,4.36885167]
[1751845027472,0.03,151.8,151.79,4.36885167]
[1751845031602,0.03,151.8,151.79,10.95690094]
[1751845033110,0.03,151.8,151.79,4.36885167]
[1751845034890,0.03,151.8,151.79,10.95690094]
[1751845036514,0.03,151.8,151.79,4.36885167]
[1751845036719,0.03,151.8,151.74,1.5534]
[1751845037008,26.03,151.8,151.71,103.87873268]
[1751845037202,2.80294905,151.79,151.75,2.80294905]
[1751845037593,2.80294905,151.79,151.74,2.80294905]
[1751845038210,9.39101341,151.79,151.75,2.80294905]
[1751845038913,10.97001256,151.79,151.75,4.3819482]
[1751845039423,4.3819482,151.78,151.73,6.59065445]
[1751845039605,4.3819482,151.78,151.74,4.3819482]
[1751845040009,10.97001256,151.79,151.75,4.3819482]
[1751845040525,10.97001256,151.79,151.73,6.59065445]
[1751845040715,10.97001256,151.79,151.75,4.3819482]
[1751845041821,10.97001256,151.79,151.74,4.3819482]
[1751845041822,4.3819482,151.78,151.74,4.3819482]
[1751845043924,10.97001256,151.79,151.74,4.3819482]
[1751845045417,10.97001256,151.79,151.74,10.97215683]
[1751845046235,6.58806436,151.79,151.74,10.97215683]
[1751845046406,10.97001256,151.79,151.75,4.3819482]
[1751845052948,6.58806436,151.79,151.75,4.3819482]
[1751845055838,10.97001256,151.79,151.75,4.3819482]
[1751845056421,6.61777901,151.8,151.76,4.3819482]
[1751845056821,18.29689778,151.8,151.76,4.3819482]
[1751845057023,6.61777901,151.8,151.76,4.3819482]
[1751845057219,10.99972721,151.8,151.76,4.3819482]
[1751845057627,0.03,151.8,151.76,4.3819482]
[1751845057826,4.4119482,151.8,151.75,6.58971268]
[1751845058028,4.4119482,151.8,151.76,4.3819482]
[1751845058219,11.70960934,151.8,151.76,4.3819482]
[1751845058832,16.71955559,151.8,151.76,2.80405501]
[1751845059033,9.42189445,151.8,151.76,2.80405501]
[1751845060934,9.42189445,151.8,151.76,9.39332919]
[1751845061121,0.03,151.8,151.76,9.39332919]
[1751845062622,7.33039788,151.8,151.76,9.39332919]
[1751845063560,7.33039788,151.8,151.77,2.80405501]
[1751845063725,0.03,151.8,151.77,2.80405501]
[1751845065436,0.03,151.8,151.79,2.80405501]
[1751845066029,0.03,151.8,151.79,9.39210428]
[1751845066957,0.03,151.8,151.79,14.56469978]
[1751845068255,0.03,151.8,151.79,9.39210428]
[1751845068953,0.03,151.8,151.79,10.96453703]
[1751845071351,0.03,151.8,151.79,6.58804927]
[1751845071530,0.03,151.8,151.79,10.96453703]
[1751845082963,7.7086,151.88,151.79,72.08430908]
[1751845083164,7.7086,151.88,151.87,4.37648776]
[1751845083675,7.7086,151.88,151.81,33.48]
[1751845083881,7.7086,151.88,151.87,4.37648776]
[1751845084172,7.7086,151.88,151.81,33.48]
[1751845084358,7.7086,151.88,151.87,4.37648776]
[1751845084856,7.7086,151.88,151.87,10.96106667]
[1751845085482,7.7086,151.88,151.86,10.96131836]
[1751845087963,7.7086,151.88,151.84,6.58587987]
[1751845088158,7.7086,151.88,151.85,4.37648776]
[1751845088977,7.7086,151.88,151.86,2.80050197]
[1751845089583,7.7386,151.88,151.86,2.80050197]
[1751845091187,7.7386,151.88,151.86,9.38550855]
[1751845094103,1.6729,151.88,151.87,2.80050197]
[1751845094466,1.6729,151.88,151.86,9.38550855]
[1751845098093,1.6729,151.88,151.86,6.58500658]
[1751845098275,1.6729,151.88,151.86,9.38550855]
[1751845099793,1.6729,151.88,151.86,2.80050197]
[1751845101208,0.03,151.88,151.87,2.80050197]
[1751845102709,0.03,151.88,151.87,9.38508088]
[1751845105718,0.03,151.88,151.87,6.58457891]
[1751845106011,0.03,151.88,151.82,16.46685308]
[1751845106190,0.03,151.88,151.86,2.80050197]
[1751845108100,0.03,151.88,151.86,9.38526452]
[1751845112515,0.03,151.88,151.87,2.80050197]
[1751845115227,0.03,151.88,151.87,9.38508088]
[1751845119414,1.8231,151.96,151.88,21.45015083]
[1751845119599,1.8231,151.96,151.95,2.80050197]
[1751845120102,0.2,151.96,151.95,2.80050197]
[1751845120923,0.2,151.96,151.95,4.36846263]
[1751845121532,0.2,151.96,151.95,10.94957483]
[1751845125810,0.2,151.96,151.95,6.5811122]
[1751845126009,0.2,151.96,151.95,10.94957483]
[1751845132130,0.03,152.02,151.95,27.40235534]
[1751845132333,0.03,152.02,152.01,4.36846263]
[1751845133624,0.03,152.02,152.01,10.9469772]
[1751845140038,0.03,152.02,151.99,23.02756292]
[1751845140231,0.03,152.02,152.01,4.36846263]
[1751845141749,0.03,152.02,151.99,23.02756292]
[1751845142046,0.03,152.02,152.01,4.36846263]
[1751845142254,0.03,152.02,152.01,10.9469772]
[1751845145419,0.03,152.02,152.0,4.36846263]
[1751845146337,0.03,152.02,151.99,10.94784285]
[1751845146544,4.36846263,152.0,151.97,6.5802461]
[1751845147557,8.20403156,152.02,151.97,6.5802461]
[1751845147558,1.6258,152.02,151.97,6.5802461]
[1751845147733,4.36846263,152.01,151.97,10.94870873]
[1751845148461,1.6258,152.02,151.99,4.36846263]
[1751845148630,1.6258,152.02,152.0,4.36846263]
[1751845150035,1.6258,152.02,152.0,10.94711804]
[1751845150945,1.6258,152.02,152.0,6.57865541]
[1751845151145,1.6258,152.02,151.98,10.94827576]
[1751845151454,5.99426263,152.02,151.98,10.94827576]
[1751845151958,1.6258,152.02,151.98,10.94827576]
[1751845152157,5.99426263,152.02,151.98,10.94827576]
[1751845152648,5.99426263,152.02,151.97,4.36846263]
[1751845153458,5.99426263,152.02,151.98,4.36846263]
[1751845154161,5.99426263,152.02,151.98,10.94790287]
[1751845156767,1.6258,152.02,151.99,4.36846263]
[1751845158554,1.6258,152.02,152.0,6.57894736]
[1751845163673,1.6258,152.02,151.99,6.57928625]
[1751845167768,5.99426263,152.02,151.99,6.57928625]
[1751845168161,1.6258,152.02,151.99,6.57928625]
[1751845169869,1.6258,152.02,151.99,10.94774888]
[1751845171960,1.6258,152.02,151.99,6.57928625]
[1751845173278,1.6258,152.02,152.0,4.36846263]
[1751845174076,1.6258,152.02,152.01,4.36846263]
[1751845174077,0.03,152.02,152.01,4.36846263]
[1751845174981,0.03,152.02,152.01,2.79339952]
[1751845175359,0.03,152.02,152.01,9.37191409]
[1751845176972,0.03,152.02,152.01,10.94385822]
[1751845181276,1e-08,152.02,152.01,10.94385822]
[1751845182159,1e-08,152.02,152.01,6.57851457]
[1751845182456,1e-08,152.02,152.01,10.94385822]
[1751845185802,1e-08,152.04,152.03,30.36534365]
[1751845185964,1e-08,152.04,152.03,63.76534365]
[1751845188288,1e-08,152.04,152.03,70.34299279]
[1751845190593,1e-08,152.04,152.03,36.94299279]
[1751845190771,1e-08,152.04,152.03,70.34299279]
[1751845191989,1e-08,152.04,152.03,65.97764914]
[1751845192185,1e-08,152.04,152.03,70.34299279]
[1751845194888,1e-08,152.04,152.0,6.57894736]
[1751845195084,4.36534365,152.03,152.0,6.57894736]
[1751845196796,4.36534365,152.03,151.99,39.97938022]
[1751845198494,4.36534365,152.03,151.99,44.34472387]
[1751845198692,4.36534365,152.02,151.98,6.5796164]
[1751845198894,4.36534365,152.01,151.98,6.5796164]
[1751845199478,4.36534365,152.02,151.98,6.5796164]
[1751845199687,4.36534365,152.0,151.97,6.58014308]
[1751845199882,6.01294365,152.0,151.97,6.58014308]
[1751845201278,1.6476,152.0,151.97,6.58014308]
[1751845201502,6.01294365,152.0,151.97,6.58014308]
[1751845208395,4.36534365,151.98,151.96,0.06]
[1751845208595,4.36534365,151.97,151.96,0.06]
[1751845210317,5.97984365,151.97,151.96,0.06]
[1751845211609,12.56008975,151.97,151.96,0.06]
[1751845212593,8.1947461,151.97,151.96,0.06]
[1751845212802,12.56008975,151.97,151.96,0.06]
[1751845216219,63.61343861,151.97,151.96,0.06]
[1751845216419,59.24809496,151.97,151.96,0.06]
[1751845216592,63.61343861,151.97,151.96,0.06]
[1751845216919,44.96378975,151.97,151.96,0.06]
[1751845221130,63.61343861,151.97,151.96,0.06]
[1751845232439,38.56008975,151.97,151.96,0.06]
[1751845232619,57.20973861,151.97,151.96,0.06]
[1751845239229,64.50337024,151.97,151.96,0.06]
[1751845240837,62.9368012,151.97,151.96,0.06]
[1751845241135,51.94328049,151.97,151.96,0.06]
[1751845241315,47.44842347,151.97,151.96,0.06]
[1751845241637,6.5799222,151.98,151.96,0.06]
[1751845241638,9.37869681,151.98,151.96,0.06]
[1751845242942,10.95081711,151.98,151.96,0.06]
[1751845243438,4.37089491,151.97,151.96,0.06]
[1751845244242,10.95114101,151.97,151.96,0.06]
[1751845244742,29.60078987,151.97,151.96,0.06]
[1751845244946,36.90822255,151.97,151.96,0.06]
[1751845251539,30.32797645,151.97,151.96,0.06]
[1751845253133,36.90822255,151.97,151.96,0.06]
[1751845260355,62.90822255,151.97,151.96,0.06]
[1751845264564,58.53732764,151.97,151.96,0.06]
[1751845264746,62.90822255,151.97,151.96,0.06]
[1751845268865,61.33602353,151.97,151.96,0.06]
[1751845286980,58.53732764,151.97,151.96,0.06]
[1751845287373,61.33602353,151.97,151.96,0.06]
[1751845287956,58.53732764,151.97,151.96,0.06]
[1751845288261,61.33602353,151.97,151.96,0.06]
[1751845297607,61.36122453,151.97,151.96,0.06]
[1751845301135,44.64964886,151.93,151.88,0.06]
[1751845301299,2.79869589,151.91,151.88,0.06]
[1751845301495,44.64964886,151.93,151.88,0.06]
[1751845301496,2.79869589,151.89,151.88,0.06]
[1751845302930,2.79869589,151.9,151.88,0.06]
[1751845303223,2.79869589,151.89,151.88,0.06]
[1751845303425,6.58308963,151.91,151.88,0.06]
[1751845303612,2.79869589,151.9,151.88,0.06]
[1751845305424,9.38200053,151.9,151.88,0.06]
[1751845307105,2.79869589,151.89,151.88,0.06]
[1751845307308,9.38200053,151.9,151.88,0.06]
[1751845312218,2.79869589,151.89,151.88,0.06]
[1751845315731,9.38240778,151.89,151.88,0.06]
[1751845316029,28.03205664,151.89,151.88,0.06]
[1751845317841,25.23336075,151.89,151.88,0.06]
[1751845318049,28.03205664,151.89,151.88,0.06]
[1751845337678,174.03205664,151.89,151.88,0.06]
[1751845337849,44.64964886,151.85,151.81,0.1]
[1751845338051,21.44834475,151.82,151.81,0.1]
[1751845338275,47.44834475,151.82,151.81,0.1]
[1751845339548,54.03509221,151.82,151.81,0.1]
[1751845345168,51.23639632,151.82,151.81,0.1]
[1751845345471,146.0,151.85,151.81,9.48585536]
[1751845345773,146.0,151.85,151.82,2.79869589]
[1751845346377,146.0,151.85,151.83,2.79869589]
[1751845346873,18.64964886,151.88,151.84,2.79869589]
[1751845347181,18.64964886,151.88,151.85,2.79869589]
[1751845347565,44.64964886,151.88,151.85,2.79869589]
[1751845348579,147.5603,151.91,151.86,2.79869589]
[1751845348580,9.38215911,151.9,151.86,2.79869589]
[1751845348758,21.44834475,151.89,151.85,2.79869589]
[1751845348962,49.0255641,151.89,151.85,4.37591524]
[1751845350081,55.60951413,151.89,151.85,4.37591524]
[1751845350971,55.60951413,151.89,151.84,4.37591524]
[1751845352081,10.96015486,151.88,151.84,4.37591524]
[1751845353176,55.60938878,151.89,151.84,10.96174645]
[1751845355473,55.60938878,151.89,151.84,11.02174645]
[1751845355784,55.63938878,151.89,151.84,11.02174645]
[1751845356173,4.37591524,151.88,151.84,4.43591524]
[1751845361695,55.63938878,151.89,151.84,11.02167472]
[1751845361868,26.03,151.89,151.84,6.64575948]
[1751845362182,0.03,151.89,151.88,4.37591524]
[1751845362386,4.40591524,151.89,151.86,6.1688]
[1751845362578,0.03,151.89,151.86,10.54471524]
[1751845364499,0.03,151.89,151.86,17.12952967]
[1751845365599,0.03,151.89,151.87,10.96049207]
[1751845366091,0.03,151.89,151.87,4.37591524]
[1751845368406,0.03,151.89,151.87,10.96034689]
[1751845370910,0.03,151.89,151.87,9.38425798]
[1751845372781,0.03,151.89,151.87,2.79982633]
[1751845374597,0.03,151.89,151.86,2.79982633]
[1751845375820,0.03,151.89,151.87,2.79982633]
[1751845377197,0.03,151.89,151.87,9.38421744]
[1751845377611,0.03,151.89,151.87,6.58439111]
[1751845378620,0.03,151.89,151.87,6.64439111]
[1751845384126,0.03,151.89,151.87,2.85982633]
[1751845384626,0.03,151.89,151.88,2.79982633]
[1751845386106,0.03,151.89,151.88,9.3839717]
[1751845396344,0.03,151.89,151.88,42.7239717]
[1751845402749,0.03,151.89,151.88,42.7839717]
[1751845404734,0.03,151.96,151.95,2.79982633]
[1751845406541,0.03,151.96,151.95,9.38093853]
[1751845408155,0.03,151.96,151.92,23.03844127]
[1751845408449,0.03,151.96,151.95,2.79982633]
[1751845410257,0.03,151.96,151.95,9.38093853]
[1751845410624,0.03,151.96,151.95,2.79982633]
[1751845410842,0.03,151.96,151.94,6.5813467]
[1751845410843,0.03,151.96,151.94,9.38117303]
[1751845416560,0.03,151.96,151.94,6.5813467]
[1751845416759,0.03,151.96,151.94,9.38117303]
[1751845418055,0.03,151.96,151.95,2.79982633]
[1751845419459,0.03,151.96,151.95,9.38093853]
[1751845424362,0.03,151.96,151.95,2.79982633]
[1751845426391,0.03,151.96,151.95,9.38093853]
[1751845426760,0.03,151.96,151.95,6.5811122]
[1751845428878,0.03,151.96,151.92,6.58241179]
[1751845429090,0.03,151.96,151.92,9.38223812]
[1751845429458,0.03,151.96,151.93,2.79982633]
[1751845430173,2.79982633,151.94,151.9,9.3831048]
[1751845430403,4.40112633,151.94,151.9,6.58327847]
[1751845430693,1.6013,151.94,151.9,9.3831048]
[1751845432093,1.6013,151.94,151.91,2.79982633]
[1751845432693,1.6013,151.94,151.91,9.38243406]
[1751845434685,7.3237746,151.95,151.92,11.19930532]
[1751845434889,0.03,151.96,151.92,11.19930532]
[1751845434890,0.03,151.96,151.94,2.79982633]
[1751845435090,0.03,151.96,151.95,2.79982633]
[1751845435396,9.15471825,152.03,151.97,26.0]
[1751845435592,0.2,152.05,152.02,2.79982633]
[1751845435795,2.79982634,152.04,151.95,6.82]
[1751845435991,2.79982634,152.04,151.99,2.79982633]
[1751845436308,1e-08,152.04,152.0,2.79982633]
[1751845436683,2.79982634,152.04,152.0,9.37855557]
[1751845436883,4.36714284,152.04,152.0,10.94587207]
[1751845438714,4.36714284,152.04,152.0,6.57872924]
[1751845439403,1e-08,152.04,152.0,10.94587207]
[1751845444813,1e-08,152.04,152.01,4.36714283]
[1751845446311,1e-08,152.04,152.02,6.57808183]
[1751845453759,1e-08,152.04,152.02,10.94522466]
[1751845455747,1e-08,152.04,152.02,4.36714283]
[1751845456864,1e-08,152.04,152.01,2.79435142]
[1751845457861,1e-08,152.04,152.02,6.57808183]
[1751845458561,1e-08,152.04,152.02,9.37243325]
[1751845458764,1e-08,152.04,152.03,2.79435142]
[1751845460565,1e-08,152.04,152.03,9.37200056]
[1751845463045,1e-08,152.04,152.02,2.79435142]
[1751845463757,1e-08,152.04,152.03,2.79435142]
[1751845470281,1e-08,152.04,152.02,2.79435142]
[1751845475585,1e-08,152.04,152.03,6.57764914]
[1751845476867,1e-08,152.04,152.0,23.02529292]
[1751845477067,1e-08,152.04,152.02,2.79435142]
[1751845479484,1e-08,152.04,152.03,6.57764914]
[1751845482099,1e-08,152.04,152.03,9.37200056]
[1751845492693,1e-08,152.04,152.03,6.57764914]
[1751845493799,1e-08,152.04,152.02,2.79435142]
[1751845495286,1e-08,152.04,152.03,6.57764914]
[1751845498106,1e-08,152.04,152.03,9.37200056]
[1751845498614,1e-08,152.04,152.03,6.57764914]
[1751845500300,1e-08,152.04,151.99,6.57938022]
[1751845500301,1.604,152.03,151.99,6.57938022]
[1751845500504,2.79435142,152.0,151.97,6.5802461]
[1751845500708,1.604,152.03,151.97,6.5802461]
[1751845500709,2.79435142,151.99,151.97,6.5802461]
[1751845501430,1.604,152.03,151.97,25.82521277]
[1751845501611,1.604,152.03,152.0,9.37329878]
[1751845501903,1e-08,152.04,152.01,2.79435142]
[1751845502284,2.79435143,152.04,152.0,9.37329878]
[1751845503087,2.79435142,152.03,152.0,6.57894736]
[1751845503281,2.79435142,152.02,152.0,6.57894736]
[1751845504405,2.79435142,152.02,151.99,6.57938022]
[1751845504596,2.79435142,152.03,151.99,9.37373164]
[1751845504798,4.36759365,152.03,151.99,10.94697387]
[1751845505794,4.36759365,152.02,151.99,6.57938022]
[1751845505989,1e-08,152.04,151.99,10.94697387]
[1751845506310,4.36759365,152.03,151.99,10.94697387]
[1751845506811,4.36759365,152.03,151.99,6.57938022]
[1751845507202,4.36759365,152.03,151.99,10.94697387]
[1751845507402,4.36759365,152.02,151.99,6.57938022]
[1751845507896,4.36759365,152.0,151.98,6.57951107]
[1751845509901,4.36759365,152.0,151.97,6.5802461]
[1751845511702,4.36759365,152.01,151.97,6.5802461]
[1751845514818,4.36759365,152.01,151.97,4.36759365]
[1751845515207,4.36759365,152.0,151.96,4.42759365]
[1751845515609,4.36759365,152.01,151.97,4.36759365]
[1751845515815,4.36759365,152.01,151.96,0.06]
[1751845516002,4.36759365,152.01,151.97,4.36759365]
[1751845517018,4.36759365,152.01,151.98,6.57981313]
[1751845517222,4.36759365,152.02,151.98,6.57981313]
[1751845518513,5.90689365,152.03,151.99,4.36759365]
[1751845519206,1.5393,152.03,151.99,4.36759365]
[1751845519407,0.03,152.03,152.02,4.36759365]
[1751845520825,0.03,152.03,152.02,10.94567548]
[1751845522223,0.03,152.03,152.0,6.57894736]
[1751845522522,4.36759365,152.02,151.98,4.36759365]
[1751845522830,4.36759365,152.02,151.98,10.94740678]
[1751845523018,4.39759365,152.03,151.98,10.94740678]
[1751845524507,4.36759365,152.02,151.98,10.94740678]
[1751845526723,0.03,152.03,151.98,10.94740678]
[1751845526931,4.39759365,152.03,151.99,4.36759365]
[1751845527928,4.39759365,152.03,151.98,23.02934596]
[1751845528234,4.39759365,152.03,151.96,0.06]
[1751845528235,4.36759365,151.99,151.96,0.06]
[1751845529109,4.36759365,151.99,151.96,6.64050406]
[1751845530311,4.36759365,151.98,151.96,0.06]
[1751845534735,4.36759365,151.97,151.96,0.06]
[1751845536460,5.88779365,151.97,151.96,0.06]
[1751845536748,1.5202,151.97,151.96,0.06]
[1751845537043,4.36759365,152.0,151.96,4.42759365]
[1751845538113,4.36759365,152.0,151.96,6.64059525]
[1751845538314,4.36759365,151.99,151.96,6.64059525]
[1751845540522,4.36759365,151.99,151.96,0.06]
[1751845542740,40.25389515,152.01,151.96,0.06]
[1751845542944,4.36759365,151.99,151.96,0.06]
[1751845556356,4.36759365,151.98,151.96,0.06]
[1751845559557,4.36759365,151.99,151.96,0.06]
[1751845566564,0.03,152.01,151.98,4.36759365]
[1751845566753,0.03,152.01,151.99,4.36759365]
[1751845566955,0.03,152.01,151.98,4.36759365]
[1751845569150,0.03,152.01,152.0,4.36759365]
[1751845570858,0.03,152.01,151.99,6.57938022]
[1751845571057,0.03,152.01,152.0,36.94654101]
[1751845571263,0.03,152.01,152.0,6.57894736]
[1751845572267,0.03,152.01,152.0,10.94654101]
[1751845576863,0.03,152.01,152.0,6.57894736]
[1751845579970,4.39759365,152.01,151.98,6.57981313]
[1751845581944,4.39759365,152.01,151.96,4.42759365]
[1751845583472,4.39759365,152.01,151.97,6.5802461]
[1751845584665,0.03,152.01,151.97,4.36759365]
[1751845584965,4.39759365,152.01,151.97,4.36759365]
[1751845585665,0.03,152.01,151.97,4.36759365]
[1751845585867,4.39759365,152.01,151.98,6.57981313]
[1751845588569,0.03,152.01,152.0,4.36759365]
[1751845588974,0.03,152.01,151.98,23.02934596]
[1751845589176,0.03,152.01,152.0,4.36759365]
[1751845589777,0.03,152.01,152.0,10.94654101]
[1751845593064,0.03,152.01,152.0,4.36759365]
[1751845594380,0.03,152.01,152.0,10.94654101]
[1751845598284,0.03,152.01,152.0,6.57894736]
[1751845604584,0.03,152.01,151.97,16.4496074]
[1751845604771,0.03,152.01,151.97,20.81720105]
[1751845607492,0.03,152.01,151.97,27.39744715]
[1751845607673,0.03,152.01,151.98,4.36759365]
[1751845608088,0.03,152.01,151.97,23.0298535]
[1751845608294,0.03,152.01,151.97,27.39744715]
[1751845608523,4.36759365,152.0,151.96,6.64048795]
[1751845608688,4.36759365,151.98,151.96,6.64048795]
[1751845609073,7.3594479,152.01,151.96,6.64048795]
[1751845609283,4.36759365,151.98,151.96,0.06]
[1751845613095,4.36759365,151.97,151.96,0.06]
[1751845613293,0.03,152.03,152.0,26.0]
[1751845613492,0.03,152.03,152.0,4.36759365]
[1751845613698,7.37807782,152.03,151.99,26.0]
[1751845613875,0.03,152.03,151.99,26.0]
[1751845614078,0.03,152.03,151.97,4.36759365]
[1751845614079,4.36759365,152.02,151.97,4.36759365]
[1751845615189,4.36759365,152.02,151.98,6.57981313]
[1751845616581,4.36759365,152.0,151.97,6.5802461]
[1751845617081,4.36759365,152.01,151.97,6.5802461]
[1751845619801,4.36759365,152.01,151.96,4.42759365]